fUST/lending_fUST_20251218
["ID","MTS","AMOUNT","RATE_DAILY","PERIOD"]
[398992891,1766047840537,-414.0,0.00058879,30]
[398992892,1766047840547,-2000.0,0.00058879,30]
[398992893,1766047840556,-250.0,0.00058879,30]
[398992894,1766047840565,-878.0,0.00058879,30]
[398992895,1766047840574,-429.318,0.00058879,30]
[398992896,1766047840583,-2074.0,0.00058879,30]
[398992897,1766047840592,-250.0,0.00058879,30]
[398992898,1766047840600,-878.0,0.00058879,30]
[398992899,1766047840609,-2150.738,0.00058879,30]
[398992900,1766047840618,-445.202766,0.00058879,30]
[398992901,1766047840627,-250.0,0.00058879,30]
[398992902,1766047840636,-878.0,0.00058879,30]
[398992903,1766047840645,-461.67526834,0.00058879,30]
[398992904,1766047840655,-2230.315306,0.00058879,30]
[398992905,1766047840664,-250.0,0.00058879,30]
[398992906,1766047840673,-878.0,0.00058879,30]
[398992907,1766047840681,-478.75725327,0.00058879,30]
[398992908,1766047840690,-1623.97555202,0.00058879,30]
[398992909,1766047840702,-688.8614203,0.00058879,30]
[398992910,1766047840712,-500.74956185,0.00058879,30]
[398992911,1766047840723,-377.25043815,0.00058879,30]
[398992912,1766047840732,-250.0,0.00058879,30]
[398992913,1766047840742,-496.47127164,0.00058879,30]
[398992914,1766047840751,-2398.4119403,0.00058879,30]
[398992915,1766047840760,-878.0,0.00058879,30]
[398992916,1766047840769,-514.84070869,0.00058879,30]
[398992917,1766047840780,-701.53730733,0.00058879,30]
[398992918,1766047840789,-250.0,0.00058879,30]
[398992919,1766047840798,-739.10661054,0.00058879,30]
[398992920,1766047840877,-151.09708073,0.00031507,2]
[398992921,1766047840886,-138.89338946,0.00058879,30]
[398992922,1766047840896,-200.95275673,0.00058879,30]
[398992923,1766047840905,-250.0,0.00058879,30]
[398992924,1766047840914,-878.0,0.00058879,30]
[398992925,1766047840924,-250.0,0.00058879,30]
[398992926,1766047840934,-878.0,0.00058879,30]
[398992927,1766047840944,-878.0,0.00058879,30]
[398992928,1766047840954,-250.0,0.00058879,30]
[398992929,1766047840963,-250.0,0.00058879,30]
[398992930,1766047840973,-878.0,0.00058879,30]
[398992931,1766047840983,-878.0,0.00058879,30]
[398992932,1766047840993,-878.0,0.00058879,30]
[398992933,1766047841002,-878.0,0.00058879,30]
[398992934,1766047841012,-19285.73693669,0.0005888,30]
[398992935,1766047841024,-24169.95829142,0.0005888,30]
[398992936,1766047841034,-344.0,0.0005888,30]
[398992937,1766047841043,-344.0,0.0005888,30]
[398992938,1766047841053,-344.0,0.0005888,30]
[398992939,1766047841062,-344.0,0.0005888,30]
[398992940,1766047841071,-344.0,0.0005888,30]
[398992941,1766047841080,-344.0,0.0005888,30]
[398992942,1766047841090,-344.0,0.0005888,30]
[398992943,1766047841100,-344.0,0.0005888,30]
[398992944,1766047841110,-344.0,0.0005888,30]
[398992945,1766047841118,-344.0,0.0005888,30]
[398992946,1766047841127,-344.0,0.0005888,30]
[398992947,1766047841136,-344.0,0.0005888,30]
[398992948,1766047841145,-344.0,0.0005888,30]
[398992949,1766047841154,-344.0,0.0005888,30]
[398992950,1766047841165,-344.0,0.0005888,30]
[398992951,1766047841175,-344.0,0.0005888,30]
[398992952,1766047841187,-344.0,0.0005888,30]
[398992953,1766047841195,-344.0,0.0005888,30]
[398992954,1766047841205,-344.0,0.0005888,30]
[398992955,1766047841214,-344.0,0.0005888,30]
[398992956,1766047841224,-344.0,0.0005888,30]
[398992957,1766047841233,-344.0,0.0005888,30]
[398992958,1766047841243,-344.0,0.0005888,30]
[398992959,1766047841252,-344.0,0.0005888,30]
[398992960,1766047841263,-344.0,0.0005888,30]
[398992961,1766047841272,-344.0,0.0005888,30]
[398992962,1766047841281,-344.0,0.0005888,30]
[398992963,1766047841291,-344.0,0.0005888,30]
[398992964,1766047841302,-344.0,0.0005888,30]
[398992965,1766047841311,-344.0,0.0005888,30]
[398992966,1766047841319,-344.0,0.0005888,30]
[398992967,1766047841328,-344.0,0.0005888,30]
[398992968,1766047841338,-344.0,0.0005888,30]
[398992969,1766047841348,-344.0,0.0005888,30]
[398992970,1766047841358,-344.0,0.0005888,30]
[398992971,1766047841367,-344.0,0.0005888,30]
[398992972,1766047841376,-344.0,0.0005888,30]
[398992973,1766047841385,-344.0,0.0005888,30]
[398992974,1766047841394,-344.0,0.0005888,30]
[398992975,1766047841403,-344.0,0.0005888,30]
[398992976,1766047841413,-344.0,0.0005888,30]
[398992977,1766047841422,-344.0,0.0005888,30]
[398992978,1766047841431,-344.0,0.0005888,30]
[398992979,1766047841440,-344.0,0.0005888,30]
[398992980,1766047841449,-344.0,0.0005888,30]
[398992981,1766047841458,-344.0,0.0005888,30]
[398992982,1766047841467,-344.0,0.0005888,30]
[398992983,1766047841476,-344.0,0.0005888,30]
[398992984,1766047841485,-931.59092711,0.0005888,30]
[398993001,1766047873171,502.22454175,0.00013699,2]
[398993002,1766047877309,500.0,0.00013273,2]
[398993003,1766047877360,1000.0,0.00013821,2]
[398993004,1766047877415,865.99133525,0.00014368,2]
[398993005,1766047877436,558.62500229,0.00014368,2]
[398993006,1766047878175,505.79086482,0.00013699,2]
[398993007,1766047880404,500.0,0.00013699,2]
[398993008,1766047880443,1000.0,0.00014247,2]
[398993009,1766047880552,1500.0,0.00014795,2]
[398993010,1766047881385,-546.39918157,0.00015342,2]
[398993011,1766047883287,1000.0,0.00014247,2]
[398993012,1766047883343,1500.0,0.00014795,2]
[398993013,1766047883458,500.0,0.00013699,2]
[398993014,1766047884487,-191.26207394,0.00015342,2]
[398993015,1766047884508,-104.36167287,0.00015342,2]
[398993016,1766047905839,1868.3521212,0.00015111,59]
[398993017,1766047924088,1000.0,0.00015,2]
[398993018,1766047924784,500.0,0.00013699,2]
[398993019,1766047927870,150.0,0.00013507,2]
[398993020,1766047928337,150.0,0.00014735,2]
[398993021,1766047930660,500.0,0.00013273,2]
[398993022,1766047933574,509.50595829,0.00013273,2]
[398993023,1766048004722,126.0881746,0.00013699,2]
[398993024,1766048004746,365.12858665,0.00013699,2]
[398993025,1766048005628,150.0,0.00010219,2]
[398993026,1766048006067,150.0,0.00011147,2]
[398993027,1766048006515,150.0,0.00012076,2]
[398993028,1766048006915,172.09,0.00013005,2]
[398993029,1766048007336,215.12,0.00013934,2]
[398993030,1766048007748,258.14,0.00014863,2]
[398993031,1766048047101,500.0,0.00013699,2]
[398993032,1766048078927,150.0,0.00010744,2]
[398993033,1766048079349,150.0,0.0001172,2]
[398993034,1766048079805,150.0,0.00012697,2]
[398993035,1766048080491,150.0,0.00013674,2]
[398993036,1766048080901,150.0,0.00014651,2]
[398993037,1766048105183,500.0,0.00013273,2]
[398993038,1766048105236,906.86690711,0.00013821,2]
[398993039,1766048105607,500.0,0.00013699,2]
[398993040,1766048105666,1000.0,0.00014247,2]
[398993041,1766048105838,1500.0,0.00014795,2]
[398993042,1766048151956,150.0,0.00013625,2]
[398993043,1766048152352,150.0,0.00014863,2]
[398993044,1766048164013,1000.0,0.00015,2]
[398993045,1766048217388,-219.06,0.00015188,2]
[398993046,1766048221798,-385.56871377,0.00015188,2]
[398993047,1766048224303,-383.62,0.00015188,2]
[398993048,1766048226299,-165.87242082,0.00015188,2]
[398993049,1766048226801,502.82238438,0.00013273,2]
[398993050,1766048228649,-235.2304113,0.00015188,2]
[398993051,1766048229999,150.0,0.00013206,2]
[398993052,1766048230402,150.0,0.00014407,2]
[398993053,1766048232027,-1018.37646941,0.00015188,2]
[398993054,1766048233688,-250.30022581,0.00015188,2]
[398993055,1766048246642,779.84212186,0.00015,2]
[398993056,1766048246663,4220.15787814,0.00015,2]
[398993057,1766048247404,-473.61963769,0.00015188,2]
[398993058,1766048270454,5000.0,0.00015,2]
[398993059,1766048293302,779.85212186,0.00015,2]
[398993060,1766048293326,4220.14787814,0.00015,2]
[398993061,1766048307376,-150.0,0.00015189,2]
[398993062,1766048307398,-222.61677492,0.00015342,2]
[398993063,1766048308713,150.0,0.00013105,2]
[398993064,1766048309122,155.28,0.00014296,2]
[398993065,1766048316786,5000.0,0.00015,2]
[398993066,1766048340289,474.58212186,0.00015,2]
[398993067,1766048340312,4525.41787814,0.00015,2]
[398993068,1766048363275,5000.0,0.00015,2]
[398993069,1766048364989,-150.0,0.00015266,2]
[398993070,1766048365010,-6.71125103,0.00015342,2]
[398993071,1766048365034,-1.5905406,0.00015488,2]
[398993072,1766048367156,-203.92087696,0.00015488,2]
[398993073,1766048382366,-155.87,0.00015333,2]
[398993074,1766048383896,-196.26551965,0.00015333,2]
[398993075,1766048385927,-198.5,0.00015333,2]
[398993076,1766048386553,150.0,0.0001306,2]
[398993077,1766048386948,163.31,0.00014247,2]
[398993078,1766048388112,-233.37298445,0.0001518,2]
[398993079,1766048392703,-254.4404267,0.0001518,2]
[398993080,1766048395329,-437.84934574,0.0001518,2]
[398993081,1766048396866,-159.41,0.0001518,2]
[398993082,1766048400289,-284.62698134,0.0001518,2]
[398993083,1766048403905,-155.67356659,0.0001518,2]
[398993084,1766048406262,-152.03,0.0001518,2]
[398993085,1766048407753,-153.5,0.0001518,2]
[398993086,1766048408830,161.28212186,0.00013273,2]
[398993087,1766048408851,343.11385726,0.00013273,2]
[398993088,1766048409993,-316.82004982,0.0001518,2]
[398993089,1766048410367,1000.0,0.00015,2]
[398993090,1766048412046,-151.82138089,0.0001518,2]
[398993091,1766048414689,-198.17877067,0.0001518,2]
[398993092,1766048416786,-251.79547661,0.0001518,2]
[398993093,1766048418979,-562.96668608,0.0001518,2]
[398993094,1766048422208,-219.45535749,0.0001518,2]
[398993095,1766048423785,-180.23778501,0.0001518,2]
[398993096,1766048426410,-209.45784387,0.0001518,2]
[398993097,1766048429126,-185.6041162,0.0001518,2]
[398993098,1766048431391,-256.91552988,0.0001518,2]
[398993099,1766048432894,-567.66288503,0.0001518,2]
[398993100,1766048465114,150.0,0.00013149,2]
[398993101,1766048465538,202.15,0.00014344,2]
[398993103,1766048553823,150.0,0.00013085,2]
[398993104,1766048554239,193.19,0.00014274,2]
[398993105,1766048580476,5000.0,0.00015,2]
[398993106,1766048588875,2961.55614274,0.00015,2]
[398993107,1766048588898,2038.44385726,0.00015,2]
[398993108,1766048605885,5000.0,0.00015,2]
[398993109,1766048613646,2961.56614274,0.00015,2]
[398993110,1766048613668,2038.43385726,0.00015,2]
[398993111,1766048630059,3224.19744333,0.00015,2]
[398993112,1766048633759,150.0,0.00010356,2]
[398993113,1766048634188,193.01,0.00011298,2]
[398993114,1766048634601,289.51,0.00012239,2]
[398993115,1766048635010,386.01,0.00013181,2]
[398993116,1766048635416,482.51,0.00014122,2]
[398993117,1766048638568,3236.33869941,0.00015,2]
[398993118,1766048638593,1763.66130059,0.00015,2]
[398993119,1766048644230,1000.0,0.00015,2]
[398993120,1766048661509,5000.0,0.00015,2]
[398993121,1766048689990,2236.34869941,0.00015,2]
[398993122,1766048690011,2763.65130059,0.00015,2]
[398993123,1766048713239,5000.0,0.00015,2]
[398993124,1766048713753,150.0,9.791e-05,2]
[398993125,1766048714155,154.8,0.00010257,2]
[398993126,1766048714567,232.2,0.00010724,2]
[398993127,1766048714968,309.59,0.0001119,2]
[398993128,1766048715377,386.99,0.00011656,2]
[398993129,1766048715764,464.39,0.00012122,2]
[398993130,1766048716275,538.38869941,0.00012589,2]
[398993131,1766048716300,3.40130059,0.00012589,2]
[398993132,1766048716686,619.19,0.00013055,2]
[398993133,1766048717111,696.59,0.00013521,2]
[398993134,1766048717506,773.99,0.00013987,2]
[398993135,1766048737191,5000.0,0.00015,2]
[398993136,1766048760254,2906.83869941,0.00015,2]
[398993137,1766048760279,2093.16130059,0.00015,2]
[398993138,1766048783179,5000.0,0.00015,2]
[398993139,1766048789343,150.0,9.833e-05,2]
[398993140,1766048789867,150.0,0.00010301,2]
[398993141,1766048790163,150.0,0.00010769,2]
[398993142,1766048790565,150.0,0.00011237,2]
[398993143,1766048790971,169.86,0.00011705,2]
[398993144,1766048791367,203.83,0.00012174,2]
[398993145,1766048791772,237.8,0.00012642,2]
[398993146,1766048792189,271.78,0.0001311,2]
[398993147,1766048792584,305.75,0.00013578,2]
[398993148,1766048793005,339.72,0.00014047,2]
[398993149,1766048807192,778.10869941,0.00015,2]
[398993150,1766048807213,4221.89130059,0.00015,2]
[398993151,1766048830171,5000.0,0.00015,2]
[398993152,1766048853988,778.11869941,0.00015,2]
[398993153,1766048854012,4221.88130059,0.00015,2]
[398993154,1766048859810,150.0,6.746e-05,2]
[398993155,1766048860255,150.0,7.067e-05,2]
[398993156,1766048860675,150.0,7.388e-05,2]
[398993157,1766048877128,5000.0,0.00015,2]
[398993158,1766048884675,328.12869941,0.00015,2]
[398993159,1766048884696,671.87130059,0.00015,2]
[398993160,1766048900633,5000.0,0.00015,2]
[398993161,1766048923662,4328.13869941,0.00015,2]
[398993162,1766048923684,671.86130059,0.00015,2]
[398993163,1766048946839,5000.0,0.00015,2]
[398993164,1766048963120,-300.0,0.00015109,2]
[398993165,1766048963139,-300.0,0.00015109,2]
[398993166,1766048963160,-500.0,0.0001511,2]
[398993167,1766048963183,-500.0,0.0001511,2]
[398993168,1766048963204,-500.0,0.0001511,2]
[398993169,1766048963225,-500.0,0.0001511,2]
[398993170,1766048963245,-458.0,0.0001511,2]
[398993171,1766048963265,-500.0,0.0001511,2]
[398993172,1766048963288,-500.0,0.0001511,2]
[398993173,1766048963312,-500.0,0.0001511,2]
[398993174,1766048963334,-489.0,0.0001511,2]
[398993175,1766048970033,1947.82909113,0.00015,2]
[398993176,1766048997546,1000.0,0.00015,2]
[398993189,1766049032058,-186.1763481,0.0001501,2]
[398993190,1766049032067,-96.5496519,0.00015109,2]
[398993191,1766049032111,-203.4503481,0.00015109,2]
[398993192,1766049032120,-1200.0,0.00015109,2]
[398993193,1766049032130,-264.3258912,0.0001511,2]
[398993223,1766049038230,-500.0,0.00015109,2]
[398993224,1766049038241,-500.0,0.00015109,2]
[398993225,1766049038251,-500.0,0.00015109,2]
[398993226,1766049038261,-248.29487563,0.00015109,2]
[398993227,1766049038274,-251.70512437,0.00015109,2]
[398993228,1766049038285,-163.93904812,0.00015109,2]
[398993229,1766049038304,-336.06095188,0.00015109,2]
[398993230,1766049038317,-500.0,0.00015109,2]
[398993231,1766049038327,-500.0,0.00015109,2]
[398993232,1766049038337,-500.0,0.00015109,2]
[398993233,1766049038347,-500.0,0.00015109,2]
[398993234,1766049038358,-454.19071342,0.00015109,2]
[398993235,1766049038371,-45.80928658,0.00015109,2]
[398993236,1766049038383,-500.0,0.00015109,2]
[398993237,1766049038393,-500.0,0.00015109,2]
[398993238,1766049038404,-500.0,0.00015109,2]
[398993239,1766049038415,-546.48806244,0.00015109,2]
[398993240,1766049038426,-500.0,0.00015109,2]
[398993241,1766049038436,-500.0,0.00015109,2]
[398993242,1766049038446,-500.0,0.00015109,2]
[398993243,1766049038456,-500.0,0.00015109,2]
[398993244,1766049038467,-500.0,0.00015109,2]
[398993245,1766049038478,-500.0,0.00015109,2]
[398993246,1766049038488,-425.63292319,0.00015109,2]
[398993247,1766049038506,-74.36707681,0.00015109,2]
[398993248,1766049038516,-407.87457498,0.00015109,2]
[398993249,1766049038528,-92.12542502,0.00015109,2]
[398993250,1766049038537,-500.0,0.00015109,2]
[398993251,1766049038548,-500.0,0.00015109,2]
[398993252,1766049038558,-500.0,0.00015109,2]
[398993253,1766049038568,-500.0,0.00015109,2]
[398993254,1766049038578,-300.0,0.00015109,2]
[398993255,1766049038589,-163.60224368,0.00015109,2]
[398993256,1766049038602,-15.79934476,0.00015109,2]
[398993257,1766049038613,-443.43262513,0.00015109,2]
[398993258,1766049038624,-500.0,0.00015109,2]
[398993259,1766049038636,-500.0,0.00015109,2]
[398993260,1766049038647,-500.0,0.00015109,2]
[398993261,1766049038658,-154.98210214,0.00015109,2]
[398993262,1766049038673,-345.01789786,0.00015109,2]
[398993263,1766049038685,-500.0,0.00015109,2]
[398993264,1766049038696,-500.0,0.00015109,2]
[398993265,1766049038707,-500.0,0.00015109,2]
[398993266,1766049038718,-360.55658569,0.00015109,2]
[398993274,1766049041428,-3e-08,0.00015109,2]
[398993276,1766049041442,-139.44341428,0.00015109,2]
[398993278,1766049041452,-500.0,0.00015109,2]
[398993279,1766049041462,-78.38458572,0.00015109,2]
[398993280,1766049041477,-421.61541428,0.00015109,2]
[398993282,1766049041488,-78.38458572,0.00015109,2]
[398993284,1766049041501,-421.61541428,0.00015109,2]
[398993286,1766049041511,-306.0993523,0.00015109,2]
[398993287,1766049041523,-193.9006477,0.00015109,2]
[398993288,1766049041533,-207.68518629,0.00015109,2]
[398993301,1766049043993,-292.31481371,0.00015109,2]
[398993302,1766049044004,-250.09518629,0.00015109,2]
[398993303,1766049044265,-249.90481371,0.00015109,2]
[398993305,1766049044275,-500.0,0.00015109,2]
[398993307,1766049044285,-500.0,0.00015109,2]
[398993309,1766049044296,-500.0,0.00015109,2]
[398993311,1766049044309,-500.0,0.00015109,2]
[398993313,1766049044320,-500.0,0.00015109,2]
[398993315,1766049044330,-500.0,0.00015109,2]
[398993316,1766049044340,-500.0,0.00015109,2]
[398993317,1766049044351,-500.0,0.00015109,2]
[398993318,1766049044361,-500.0,0.00015109,2]
[398993319,1766049044371,-500.0,0.00015109,2]
[398993320,1766049044383,-500.0,0.00015109,2]
[398993321,1766049044393,-500.0,0.00015109,2]
[398993322,1766049044403,-500.0,0.00015109,2]
[398993323,1766049044413,-500.0,0.00015109,2]
[398993324,1766049044423,-500.0,0.00015109,2]
[398993325,1766049044434,-500.0,0.00015109,2]
[398993326,1766049044444,-500.0,0.00015109,2]
[398993327,1766049044454,-500.0,0.00015109,2]
[398993328,1766049044465,-500.0,0.00015109,2]
[398993329,1766049044476,-500.0,0.00015109,2]
[398993330,1766049044487,-213.34810929,0.00015109,2]
[398993331,1766049044497,-500.0,0.00015109,2]
[398993332,1766049044508,-500.0,0.00015109,2]
[398993333,1766049044519,-500.0,0.00015109,2]
[398993334,1766049044529,-500.0,0.00015109,2]
[398993335,1766049044539,-500.0,0.00015109,2]
[398993336,1766049044548,-500.0,0.00015109,2]
[398993337,1766049044558,-500.0,0.00015109,2]
[398993338,1766049044568,-500.0,0.00015109,2]
[398993339,1766049044578,-500.0,0.00015109,2]
[398993340,1766049044588,-500.0,0.00015109,2]
[398993341,1766049044597,-500.0,0.00015109,2]
[398993342,1766049044607,-500.0,0.00015109,2]
[398993343,1766049044617,-500.0,0.00015109,2]
[398993344,1766049044629,-500.0,0.00015109,2]
[398993345,1766049044640,-500.0,0.00015109,2]
[398993346,1766049044650,-500.0,0.00015109,2]
[398993347,1766049044661,-235.6741088,0.0001511,2]
[398993348,1766049044779,-150.0,0.0001511,2]
[398993349,1766049044792,-1200.0,0.0001511,2]
[398993350,1766049044802,-637.0,0.0001511,2]
[398993351,1766049044813,-298.9130504,0.00015111,2]
[398993352,1766049044825,-298.9130504,0.00015111,2]
[398993353,1766049044835,-298.9130504,0.00015111,2]
[398993354,1766049044845,-298.9130504,0.00015111,2]
[398993355,1766049044854,-298.9130504,0.00015111,2]
[398993356,1766049044864,-298.9130504,0.00015111,2]
[398993357,1766049044874,-298.9130504,0.00015111,2]
[398993358,1766049044885,-298.9130504,0.00015111,2]
[398993359,1766049044896,-298.9130504,0.00015111,2]
[398993360,1766049044905,-298.9130504,0.00015111,2]
[398993361,1766049044914,-298.9130504,0.00015111,2]
[398993362,1766049044925,-298.9130504,0.00015111,2]
[398993363,1766049044934,-298.9130504,0.00015111,2]
[398993364,1766049044943,-298.9130504,0.00015111,2]
[398993365,1766049044952,-298.9130504,0.00015111,2]
[398993366,1766049044963,-500.0,0.00015384,2]
[398993367,1766049044973,-640.52796514,0.00015488,2]
[398993368,1766049044984,-640.52796514,0.00015488,2]
[398993369,1766049044994,-640.52796514,0.00015488,2]
[398993370,1766049045003,-640.52796514,0.00015488,2]
[398993371,1766049045012,-640.52796514,0.00015488,2]
[398993372,1766049045022,-640.52796514,0.00015488,2]
[398993373,1766049045032,-640.52796514,0.00015488,2]
[398993374,1766049045041,-640.52796514,0.00015488,2]
[398993375,1766049045051,-640.52796514,0.00015488,2]
[398993376,1766049045060,-640.52796514,0.00015488,2]
[398993377,1766049045070,-640.52796514,0.00015488,2]
[398993378,1766049045081,-640.52796514,0.00015488,2]
[398993379,1766049045090,-640.52796514,0.00015488,2]
[398993380,1766049045099,-640.52796514,0.00015488,2]
[398993381,1766049045109,-640.52796514,0.00015488,2]
[398993382,1766049045118,-640.52796514,0.00015488,2]
[398993383,1766049045127,-640.52796514,0.00015488,2]
[398993384,1766049045137,-640.52796514,0.00015488,2]
[398993385,1766049045146,-640.52796514,0.00015488,2]
[398993386,1766049045155,-640.52796514,0.00015488,2]
[398993387,1766049045164,-640.52796514,0.00015488,2]
[398993388,1766049045173,-640.52796514,0.00015488,2]
[398993389,1766049045183,-640.52796514,0.00015488,2]
[398993390,1766049045192,-420.0,0.00016534,2]
[398993391,1766049045203,-1680.0,0.00016535,2]
[398993392,1766049045213,-575.0,0.00016618,2]
[398993393,1766049045222,-177.0,0.0001711,2]
[398993394,1766049045232,-379.0,0.00018094,2]
[398993395,1766049045241,-502.40356259,0.00018095,2]
[398993396,1766049045318,-1439.59643741,0.00018095,2]
[398993397,1766049045327,-305.13144309,0.000189,2]
[398993398,1766049045337,-177.26362965,0.0001902,2]
[398993399,1766049045348,-245.47954373,0.0001902,2]
[398993400,1766049045358,-3502.14465226,0.00019021,2]
[398993441,1766049046430,-452.60481759,0.00015109,2]
[398993443,1766049046442,-40903.34979692,0.00015109,2]
[398993469,1766049047477,-1438.72,0.00015109,2]
[398993470,1766049047489,-4621.33511479,0.00015109,2]
[398993471,1766049047501,-11750.38614788,0.00019021,2]
[398993472,1766049047512,-2477.91650036,0.00019021,2]
[398993473,1766049151627,1380.31960828,0.00015,2]
[398993474,1766049151649,3619.68039172,0.00015,2]
[398993475,1766050117892,1762.91764659,8.9e-05,2]
[398993510,1766050238380,-172.2080565,0.0001611,2]
[398993511,1766050238390,-226.19553202,0.0001611,2]
[398993518,1766050240587,-1105.21846358,0.0001611,2]
[398993519,1766050240597,-654.0,0.0001611,2]
[398993520,1766050240606,-150.0,0.00016394,2]
[398993521,1766050240615,-183.94180248,0.0001783,2]
[398993522,1766050240624,-218.0,0.00018184,2]
[398993523,1766050240633,-1331.4139956,0.00018185,2]
[398993524,1766050240642,-177.0,0.00018394,2]
[398993525,1766050240651,-300.0,0.00018728,2]
[398993526,1766050240660,-858.93555811,0.00018729,2]
[398993535,1766050243525,-1000.0,0.00018729,2]
[398993536,1766050243536,-147.49493118,0.00018729,2]
[398993537,1766050243546,-2000.0,0.0001902,2]
[398993538,1766050243555,-153.33128882,0.00019021,2]
[398993539,1766050243610,-31.22257242,0.00019021,2]
[398993540,1766050246729,-1502.95,0.00019021,2]
[398993541,1766050246887,-3788.97347813,0.00019021,2]
[398993547,1766050327389,161.563786,0.00013699,2]
[398993549,1766051114192,500.0,0.00013699,2]
[398993550,1766051114238,1000.0,0.00014247,2]
[398993551,1766051114292,1500.0,0.00014795,2]
[398993552,1766051120833,500.0,0.00013699,2]
[398993553,1766051120858,500.0,0.00013699,2]
[398993554,1766051120884,455.84817569,0.00014247,2]
[398993555,1766051120905,544.15182431,0.00014247,2]
[398993556,1766051120934,1000.0,0.00014247,2]
[398993557,1766051120964,1500.0,0.00014795,2]
[398993558,1766051120990,1500.0,0.00014795,2]
[398993559,1766051122294,1000.0,0.00013821,2]
[398993560,1766051122349,500.0,0.00013273,2]
[398993561,1766051122396,1500.0,0.00014368,2]
[398993562,1766051122451,500.0,0.00014916,2]
[398993563,1766051123060,500.0,0.00013273,2]
[398993564,1766051123128,501.77232152,0.00013821,2]
[398993565,1766051124089,300.0,0.00013673,2]
[398993566,1766051124120,500.0,0.00013699,2]
[398993567,1766051124146,154.08585417,0.00014247,2]
[398993568,1766051124168,845.91414583,0.00014247,2]
[398993569,1766051124194,600.0,0.00014221,2]
[398993570,1766051124218,1500.0,0.00014795,2]
[398993571,1766051124242,500.40914802,0.00014768,2]
[398993572,1766051170125,1000.0,0.00013821,2]
[398993573,1766051170181,1500.0,0.00014368,2]
[398993574,1766051170235,500.0,0.00014916,2]
[398993575,1766051170327,500.0,0.00013699,2]
[398993576,1766051170380,500.0,0.00013273,2]
[398993577,1766051170406,1000.0,0.00014247,2]
[398993578,1766051170437,1500.0,0.00014795,2]
[398993579,1766051170462,53.68670615,0.00013821,2]
[398993580,1766051170482,946.31329385,0.00013821,2]
[398993581,1766051170538,1410.98952179,0.00014368,2]
[398993582,1766051173711,500.0,0.00013273,2]
[398993583,1766051173949,505.21647446,0.00013821,2]
[398993584,1766051174833,150.0,6.853e-05,2]
[398993585,1766051175266,150.0,7.179e-05,2]
[398993586,1766051175660,150.0,7.506e-05,2]
[398993587,1766051176123,150.0,7.832e-05,2]
[398993588,1766051176537,150.0,8.158e-05,2]
[398993589,1766051176764,500.0,0.00013273,2]
[398993590,1766051176991,150.0,8.485e-05,2]
[398993591,1766051182545,5000.0,0.00015,2]
[398993592,1766051205200,237.4907099,0.00015,2]
[398993593,1766051205224,4762.5092901,0.00015,2]
[398993594,1766051224255,500.0,0.00013699,2]
[398993595,1766051224312,1000.0,0.00014247,2]
[398993596,1766051224367,1500.0,0.00014795,2]
[398993597,1766051227722,500.0,0.00013273,2]
[398993598,1766051227748,1004.22043782,0.00014368,2]